Cogmind - Beta 16.1 @@@ ROGUE MODE // 2026.04.27 @ 16:23:15 Player: Jamba27 Result: Escaped! Performance ------------- Evolutions (9) 4500 Regions Visited (22) 4400 Robots Destroyed (251) 1255 Value Destroyed (11557) 11557 Prototype IDs (27) 540 Alien Tech Used (0) 0 Bonus (9941) 9941 TOTAL SCORE: 32193 Bonus ------- High Alert Combat Kills 1677 Follower Combat Kills 2019 Entered Garrisons 600 Used RIF Installer 2000 Entered DSFs 500 Network Hubs Disabled 200 Win 3000 Friendly Fire -55 Cogmind --------- Core Integrity 1517/1600 Matter 30/300 Energy 178/190 System Corruption 1% Temperature Warning (382) Movement Flying (21) Location To Epsilon Eridani Parts ------- > --- POWER (2) -------- Light Quantum Reactor > --- PROPULSION (8) --- Impulse Thruster Diametric Drive Electron Diverter Electron Diverter Electron Diverter Impulse Thruster Array > --- UTILITY (12) ----- Enhanced Optical Array Advanced Sensor Array Advanced Signal Interpreter Jamming Amplifier Advanced Reaction Control System Improved Hacking Suite Experimental Hacking Suite Experimental Hacking Suite System Shield Relay Coupler [NC] (26) > --- WEAPON (3) ------- Heavy Phase Cannon Molecular Scythe > --- INVENTORY (5) ---- Energy Well (350) Mini Drone Bay (3/3) Long-range Proton Cannon Hypervelocity Railgun Lance Peak State ------------ > --- POWER ------------ Light Particle Reactor Light Quantum Reactor > --- PROPULSION ------- Impulse Thruster Diametric Drive Diametric Drive Electron Diverter Electron Diverter Electron Diverter Impulse Thruster Array > --- UTILITY ---------- Enhanced Optical Array Advanced Sensor Array Advanced Signal Interpreter Advanced Transmission Jammer Jamming Amplifier Advanced Reaction Control System Hacking Suite Improved Hacking Suite Experimental Hacking Suite Experimental Hacking Suite System Shield Relay Coupler [NC] > --- WEAPON ----------- Heavy Phase Cannon Advanced Remote Datajack Molecular Scythe > --- INVENTORY -------- Energy Well Mini Drone Bay Long-range Proton Cannon Hypervelocity Railgun Lance [Rating: 170] Favorites ----------- Power Micro Nuclear Core Engine Ion Engine Power Core Micro Nuclear Core Reactor Light Particle Reactor Propulsion Combat Airjet Treads Light Treads Leg Carbon-fiber Leg Wheel Armored Wheel Hover Unit Combat Airjet Flight Unit Electron Diverter Utility Large Storage Unit Device Improved Sensor Array Storage Large Storage Unit Processor Improved Signal Interpreter Hackware Relay Coupler [NC] Protection Hardened Medium Armor Plating Weapon Railgun Energy Gun Precision Shock Rifle Energy Cannon Advanced Beam Cannon Ballistic Gun Railgun Ballistic Cannon Hardcell Cannon Launcher Mini Grenade Launcher Special Weapon Remote Datajack Impact Weapon Thunder Hammer Slashing Weapon Katana Piercing Weapon Spear Special Melee Weapon Advanced Datajack Build | -11 -10 -9 -9 -9 -8 -7 -7 -7 -7 -6 -6 -6 -6 -6 -5 -5 -5 -4 -3 -2 -2 -1 ------- Run | Yrd Mat Mat Sto Gar Mat Fac Gar Fac Gar Fac Ext Cet Arc Hub Fac Was Fac Fac Res Res DSF Acc Slots Evolved 18 | . . 2 . . 2 2 . . . 2 . . . . 2 . . 2 2 2 . 2 Power 1 | . . . . . . . . . . . . . . . . . . 1 . . . . Propulsion 6 | . . 1 . . 1 . . . . 1 . . . . . . . 1 . 1 . 1 Utility 10 | . . 1 . . 1 2 . . . . . . . . 2 . . . 2 1 . 1 Weapon 1 | . . . . . . . . . . 1 . . . . . . . . . . . . Parts Attached 229 | 6 10 15 . 12 27 3 15 10 10 23 7 3 . 7 3 14 8 11 34 3 2 6 Power 22 | 1 . 1 . 2 . . 2 1 1 . 2 . . 1 1 3 . 1 5 . . 1 Engine 7 | 1 . 1 . . . . . . . . 1 . . 1 . . . 1 2 . . . Core 8 | . . . . 2 . . 2 1 1 . 1 . . . 1 . . . . . . . Reactor 7 | . . . . . . . . . . . . . . . . 3 . . 3 . . 1 Propulsion 77 | 2 4 2 . 4 17 . 6 . 4 10 2 . . 3 . 4 1 3 13 1 . 1 Treads 21 | 2 4 2 . 3 . . 2 . 2 . . . . 1 . 4 1 . . . . . Leg 15 | . . . . 1 10 . 4 . . . . . . . . . . . . . . . Wheel 3 | . . . . . 3 . . . . . . . . . . . . . . . . . Hover 25 | . . . . . 4 . . . 2 10 2 . . 2 . . . 2 3 . . . Flight 13 | . . . . . . . . . . . . . . . . . . 1 10 1 . 1 Utility 69 | 1 4 4 . 2 7 2 2 4 3 8 1 1 . 1 1 4 1 6 10 2 2 3 Device 18 | . 1 1 . . 1 1 1 . . 1 1 . . . . 2 . 2 4 2 . 1 Storage 7 | 1 2 . . . . . . 1 . 1 . . . 1 . . 1 . . . . . Processor 20 | . 1 1 . . 3 1 . 2 . 4 . . . . 1 . . 3 4 . . . Hackware 17 | . . 1 . 2 1 . 1 . 3 1 . 1 . . . . . 1 2 . 2 2 Protection 7 | . . 1 . . 2 . . 1 . 1 . . . . . 2 . . . . . . Artifact . | . . . . . . . . . . . . . . . . . . . . . . . Weapon 61 | 2 2 8 . 4 3 1 5 5 2 5 2 2 . 2 1 3 6 1 6 . . 1 Energy Gun 11 | . . 1 . . . 1 1 3 . . . 1 . . . 1 3 . . . . . Energy Cannon 9 | . . 2 . 2 . . . . . 2 . . . . . . . 1 2 . . . Ballistic Gun 22 | 2 1 5 . . . . 3 1 . 3 1 1 . 1 1 . 2 . 1 . . . Ballistic Cannon 2 | . . . . . . . . . . . . . . 1 . 1 . . . . . . Launcher 2 | . . . . 1 . . . . . . . . . . . . 1 . . . . . Special Weapon 6 | . 1 . . 1 . . 1 1 . . 1 . . . . . . . 1 . . . Impact Weapon 1 | . . . . . . . . . . . . . . . . 1 . . . . . . Slashing Weapon 4 | . . . . . 2 . . . 1 . . . . . . . . . 1 . . . Piercing Weapon 2 | . . . . . . . . . 1 . . . . . . . . . . . . 1 Special Melee Weapon 2 | . . . . . 1 . . . . . . . . . . . . . 1 . . . Unidentified Prototypes 18 | . . 3 . . 1 1 . 2 . 3 . . . 1 . 1 1 . 3 1 1 . Corrupted Parts 2 | . . . . . . . . . . . . 1 . . 1 . . . . . . . System Corruption 10 | . . . . . . . . . . . . 9 . . 1 . . . . . . . Parts Lost 82 | . 2 1 . 9 3 . 9 . 8 . 4 3 . 9 13 . 12 . 2 1 2 4 Power 12 | . . . . 1 . . 2 . 1 . 2 . . 2 1 . 1 . 1 . . 1 Propulsion 31 | . . 1 . 6 2 . 4 . 2 . . . . 3 6 . 4 . 1 . 1 1 Utility 14 | . 1 . . . 1 . 1 . 3 . . 1 . 1 2 . 1 . . 1 1 1 Weapon 25 | . 1 . . 2 . . 2 . 2 . 2 2 . 3 4 . 6 . . . . 1 Highest Loss Streak 13 | . 1 1 . 3 3 . 3 . 1 . 1 3 . 5 13 . 5 . 1 1 3 4 To Critical Strikes 1 | . . . . . . . . . . . . 1 . . . . . . . . . . Average Backups 11 | 1 8 14 13 14 15 13 13 12 11 14 14 13 14 13 11 4 8 4 4 4 4 4 Power . | . 1 1 1 . . . . 1 1 1 1 1 1 . . . 1 . . . . . Propulsion 1 | . 2 1 1 . 1 1 1 2 1 3 4 5 5 4 3 . . . . . . . Utility 4 | . 2 4 5 7 8 7 7 5 5 5 4 3 3 3 4 1 2 1 1 1 1 1 Weapon 3 | . 2 6 5 4 3 3 2 3 3 3 4 3 4 4 3 1 3 3 3 2 3 3 Tool/Special . | . . . . . . . . . . . . . . . . . . . . . . . Unused Backups 31 | . 3 1 . 4 3 2 2 4 1 3 1 . . . 3 . 1 . 2 . . 1 Power 1 | . . . . . . . . . . 1 . . . . . . . . . . . . Propulsion 4 | . 2 . . . . . . . . . 1 . . . 1 . . . . . . . Utility 15 | . . . . 2 2 1 2 3 . 1 . . . . 2 . 1 . . . . 1 Weapon 11 | . 1 1 . 2 1 1 . 1 1 1 . . . . . . . . 2 . . . Tool/Special . | . . . . . . . . . . . . . . . . . . . . . . . Average Slot Usage (%) 86 | . 98 98 100 85 96 99 87 83 72 97 97 99 94 91 61 64 65 33 92 95 91 93 Engine 2 | . 13 11 11 1 . . . . . . 1 6 6 5 . . . 3 . . . . Core 3 | . . . . 9 9 7 5 7 6 6 4 . . . . . . . . . . . Treads 9 | . 27 32 33 13 . . 4 15 12 . . . . 1 . 13 14 . . . . . Leg 3 | . . . . 6 16 30 16 . . . . . . . . . . . . . . . Hover 7 | . . . . . 6 . . . . 31 33 33 27 29 23 1 . 5 2 . . . Flight 2 | . . . . . . . . . . . . . . . . . . 4 23 29 28 27 Device 3 | . 5 . . 1 . 7 3 4 . 3 5 . . 1 . 4 1 6 13 13 11 8 Storage 6 | . 14 11 11 11 9 7 7 7 7 6 6 6 6 6 4 . 4 . . . . . Processor 16 | . 8 14 11 3 8 22 23 22 20 18 20 20 20 20 20 17 16 9 18 17 17 15 Hackware 7 | . . . 11 16 9 7 9 7 6 9 6 12 13 6 2 . . . 12 13 15 23 Protection 1 | . . 6 . . 8 . . 2 2 1 . . . . . 2 3 . . . . . Energy Gun 1 | . . . . . . . 2 2 4 2 . 3 6 1 1 3 . . . . . . Energy Cannon 1 | . . 8 . 11 1 . . . . . . 2 . . . . . 1 . . 4 3 Ballistic Gun 7 | . 26 12 22 4 . . 4 9 5 12 10 5 . 8 . 3 11 . 2 3 . . Special Weapon 1 | . 1 . . 5 . . . . . . 2 1 5 2 3 . . . 2 4 4 4 Slashing Weapon 3 | . . . . . 14 15 6 2 3 3 4 5 6 5 . . . . . 4 4 3 Peak Build Rating 170 | 6 9 17 17 24 40 45 67 67 67 83 80 80 80 85 72 106 105 70 141 149 137 170 Average Rating 59 | 5 8 15 17 21 31 42 44 65 56 75 74 77 72 75 56 86 91 44 127 140 131 160 On Entrance 56 | . 6 9 17 17 24 37 43 64 64 65 79 66 80 76 55 16 105 3 70 134 133 137 Avg Prop Armor Cover (%) 9 | . . . . . 6 . 12 . 17 21 3 . . 11 12 13 3 10 3 2 . . Naked Turns 19 | . . . . . . . . . . . . . . . . . 13 6 . . . . Heaviest Build 93 | 14 29 34 31 35 46 31 38 48 48 53 52 47 44 46 33 90 93 15 47 51 38 53 Greatest Support 170 | 40 40 60 60 60 72 63 150 150 150 63 63 57 57 80 57 170 170 15 84 52 52 64 Greatest Overweight (x) 13 | 4 . . . 11 13 . 3 . 3 2 1 . . 1 1 3 13 . 3 . . 1 Average Overweight (x) . | . . . . 1 . . . . . . . . . . . . . . . . . . Largest Inventory Capacity 15 | 8 15 15 15 15 15 15 15 15 15 15 15 15 15 15 15 5 10 5 5 5 5 5 Average Capacity 12 | 7 10 15 15 15 15 15 15 15 15 15 15 15 15 15 14 5 9 5 5 5 5 5 Most Carried 15 | 5 14 15 14 15 15 15 15 15 15 15 15 15 15 15 15 5 10 5 5 5 5 5 Average Carried 12 | 1 9 14 13 14 14 13 14 14 12 14 14 14 15 13 12 4 8 4 4 4 4 4 Final Capacity 15 | 8 15 15 15 15 15 15 15 15 15 15 15 15 15 15 5 5 5 5 5 5 5 5 Final Carried 15 | 5 11 13 14 15 15 15 15 15 14 14 15 15 15 11 5 5 5 5 5 4 5 5 Class Distribution -------------------- 45% | Mutant 14% | Bothacker-Mutant 6% | Scout 5% | Hacker-Ninja 4% | Scavenger-Mutant 4% | Commander-Mutant 4% | Gladiator 3% | Wizard-Ninja Dominant Class ---------------- Mutant | -10/Materials Mutant | -9/Materials Mutant | -9/Storage Bothacker-Mutant | -9/Garrison Gladiator | -8/Materials Gladiator | -7/Factory Mutant | -7/Garrison Mutant | -7/Factory Mutant | -7/Garrison Scout | -6/Factory Scout | -6/Extension Commander-Mutant | -6/Cetus Commander-Mutant | -6/Archives Mutant | -6/Hub_04(d) Mutant | -5/Factory Mutant | -5/Waste Mutant | -5/Factory Mutant | -4/Factory Hacker-Ninja | -3/Research Hacker-Ninja | -2/Research Hacker-Ninja | -2/DSF Wizard-Ninja | -1/Access Resources | -11 -10 -9 -9 -9 -8 -7 -7 -7 -7 -6 -6 -6 -6 -6 -5 -5 -5 -4 -3 -2 -2 -1 ----------- Run | Yrd Mat Mat Sto Gar Mat Fac Gar Fac Gar Fac Ext Cet Arc Hub Fac Was Fac Fac Res Res DSF Acc Matter Collected 6619 | 272 372 460 52 384 448 . 328 409 515 458 825 153 35 425 60 250 701 . 432 40 . . Remotely . | . . . . . . . . . . . . . . . . . . . . . . . Salvage Created 11543 | 93 645 993 100 678 761 . 1519 546 1432 564 502 52 144 1027 269 286 1355 . 431 40 . 106 Parts 648 | 8 34 68 6 45 38 . 80 46 83 39 31 1 7 54 17 1 68 . 13 3 . 6 Haulers Intercepted 10 | . 2 2 . . 2 . . 2 . 1 . . . . . . . . 1 . . . Recyclers Shooed 5 | . . . . . . . . . . 2 1 . . . . . 2 . . . . . Parts Field Recycled . | . . . . . . . . . . . . . . . . . . . . . . . Retrieved Matter . | . . . . . . . . . . . . . . . . . . . . . . . Parts Self-Destructed . | . . . . . . . . . . . . . . . . . . . . . . . Prevented . | . . . . . . . . . . . . . . . . . . . . . . . Parts Restored . | . . . . . . . . . . . . . . . . . . . . . . . Kills | -11 -10 -9 -9 -9 -8 -7 -7 -7 -7 -6 -6 -6 -6 -6 -5 -5 -5 -4 -3 -2 -2 -1 ------- Run | Yrd Mat Mat Sto Gar Mat Fac Gar Fac Gar Fac Ext Cet Arc Hub Fac Was Fac Fac Res Res DSF Acc Combat Hostiles Destroyed 180 | . 14 19 2 20 12 . 19 6 31 6 8 1 1 11 3 . 22 . 3 . . 2 Melee 30 | . . . . . 10 . 10 . 2 2 1 . . . . . . . 3 . . 2 Guns 112 | . 14 13 2 3 . . 8 6 24 3 7 1 1 11 2 . 17 . . . . . Cannons 13 | . . 6 . 7 . . . . . . . . . . . . . . . . . . AOE 20 | . . . . 9 2 . . . 2 1 . . . . 1 . 5 . . . . . Classes Destroyed 17 | 2 4 4 . 3 1 . . 1 1 . . . . . . . 1 . . . . . Worker 13 | . . 1 . . . . . 1 . 3 1 . . 4 1 . 1 . 1 . . . Builder 14 | . . . . . 2 . . 2 . 1 3 . . 3 1 . 1 . 1 . . . Tunneler 5 | 1 . . . . . . . 2 . . 1 . . 1 . . . . . . . . Hauler 10 | . 2 2 . . 2 . . 2 . 1 . . . . . . . . 1 . . . Recycler 8 | 1 . . . . . . . . . 1 1 . . 1 1 . 2 . 1 . . . Operator 5 | . . 1 . . . . . . . 1 . . 2 1 . . . . . . . . Watcher 15 | . 2 4 . . 2 . . 2 1 . . . . 1 . . . . 2 1 . . Swarmer 34 | . 3 3 . 2 1 . 5 . 8 2 4 . . . . . 3 . 3 . . . Cutter 5 | . . . . . . . . . 4 . . . . . . . . . . . . 1 Saboteur 3 | . . . . 2 . . . . . . . . . . . . 1 . . . . . Grunt 78 | . 11 10 1 8 7 . 10 1 11 . 3 . . 7 . . 9 . . . . . Brawler 2 | . . 1 . . . . . . . . . . . 1 . . . . . . . . Duelist 6 | . . . . 3 1 . . . 1 . . . . . . . 1 . . . . . Sentry 30 | . . 5 1 2 3 . 4 2 5 2 1 . 1 1 . . 3 . . . . . Demolisher 1 | . . . . . . . . . . . . . . . . . 1 . . . . . Hunter 6 | . . . . . . . . 2 . . . . . 2 . . 2 . . . . . Programmer 15 | . . . . 3 . . . 1 3 2 . . . . 3 . 2 . . . . 1 Cetus Guard 1 | . . . . . . . . . . . . 1 . . . . . . . . . . Best Kill Streak 10 | 2 4 5 2 10 4 . 3 4 10 4 4 1 2 9 3 . 10 . 3 1 . 2 Combat Bots Only 10 | . 3 5 2 10 4 . 3 2 10 3 4 1 1 4 2 . 9 . 3 . . 2 Max Kills in Single Turn 5 | 1 1 1 1 2 2 . 2 2 2 3 1 1 1 5 1 . 3 . 1 1 . 1 Gunslinging 1 | . . . . . . . 1 . . . . . . 1 . . 1 . . . . . Exploded 3 | . . . . 2 2 . . . 2 1 . . . . 1 . 3 . . . . . Melee 1 | . . . . . 1 . 1 . 1 1 1 . . . . . . . 1 . . 1 Uniques/NPCs Destroyed . | . . . . . . . . . . . . . . . . . . . . . . . Combat | -11 -10 -9 -9 -9 -8 -7 -7 -7 -7 -6 -6 -6 -6 -6 -5 -5 -5 -4 -3 -2 -2 -1 -------- Run | Yrd Mat Mat Sto Gar Mat Fac Gar Fac Gar Fac Ext Cet Arc Hub Fac Was Fac Fac Res Res DSF Acc Hostile Shots Fired 1597 | . 62 103 9 105 45 . 155 78 246 68 127 21 . 155 127 . 214 4 20 13 6 39 Missed 493 | . 16 31 1 22 15 . 52 30 72 32 57 8 . 68 24 . 22 . 9 7 3 24 Hits 1104 | . 46 72 8 83 30 . 103 48 174 36 70 13 . 87 103 . 192 4 11 6 3 15 Melee 25 | . . 3 . 8 3 . . . 5 1 1 . . 2 . . . . . . . 2 Projectile 1079 | . 46 69 8 75 27 . 103 48 169 35 69 13 . 85 103 . 192 4 11 6 3 13 AOE 8 | . . . . . . . . 1 1 . . . . . . . 3 . . . . 3 Critical Strikes 49 | . 1 3 . 4 1 . 1 1 6 1 1 4 . 7 5 . 10 1 . . 1 2 Actively Blocked 1 | . . . . . . . . . . . . 1 . . . . . . . . . . Part Disruptions 2 | . . . . . . . . . . . . . . 1 . . . . . . . 1 Damage Taken 17423 | . 559 883 95 1284 517 . 1253 668 1999 587 904 358 . 1702 1822 . 3664 95 295 138 145 455 Core 2686 | . 64 131 . 242 67 . 272 59 247 60 152 71 . 217 498 . 410 . 62 22 29 83 Absorbed by Shields 369 | . . . . . . . 126 . 141 . . . . 102 . . . . . . . . Reduced by Siege Mode 692 | . . . . . . . . 32 226 . . . . 52 107 . 275 . . . . . Redirected to Shielding 206 | . . 41 . . . . . . . . 60 105 . . . . . . . . . . Ignored by Resistances 395 | . . . . . . . . 16 95 . . . . . . . 284 . . . . . Regen/Repaired (Parts) 816 | . 192 10 . . 41 . . . . 160 . . . . . 388 25 . . . . . Core Remaining (%) 65 | 100 74 . . 6 87 . . . 17 . . . . 41 . . 9 100 95 . 96 94 Volleys Fired 599 | 2 56 77 7 64 2 . 27 31 77 25 47 14 2 41 27 10 57 1 4 1 . 27 Largest 3 | 2 2 2 2 2 1 . 2 2 2 3 3 1 1 2 2 2 3 1 1 1 . 1 Hottest 240 | 40 100 136 46 136 68 . 83 110 110 125 100 240 240 240 115 80 165 81 90 90 . 90 Shots Fired 1024 | 4 103 145 14 104 2 . 36 54 122 52 83 14 3 76 30 20 129 1 4 1 . 27 Gun 822 | 4 94 97 14 39 . . 32 53 122 51 60 7 2 74 25 20 126 . 2 . . . Cannon 137 | . . 48 . 53 1 . . . . . . 5 . . 2 . . 1 2 1 . 24 Launcher 11 | . . . . 7 1 . . . . . . . . . . . 3 . . . . . Special 54 | . 9 . . 5 . . 4 1 . 1 23 2 1 2 3 . . . . . . 3 Kinetic 678 | 4 94 97 14 39 . . 12 43 70 48 60 6 . 71 10 . 108 . 2 . . . Thermal 179 | . 9 48 . 53 1 . . . . . . 1 2 3 15 20 . . 2 1 . 24 Explosive 11 | . . . . 7 1 . . . . . . . . . . . 3 . . . . . Electromagnetic 111 | . . . . . . . 20 10 52 3 . 5 . . 2 . 18 1 . . . . Robot Hit Streak 44 | 3 14 24 6 9 7 . 11 10 32 7 9 17 19 16 24 44 20 . 3 . . 4 Robot Miss Streak 8 | . 3 5 2 2 . . 2 1 1 8 3 . . 4 . . 6 . . . . 1 Penetration Max 2 | . . . . . . . . 2 2 . 1 1 . 1 . . 1 . . . . . Secondary Targets 16 | . 1 1 1 . . . 2 . 1 . 2 . . 3 . . 5 . . . . . Max Gunslinging Chain 1 | . 1 1 1 . . . 1 . 1 . 1 . . 1 . . 1 . . . . . Shots Hit Robots 853 | 3 70 97 10 68 44 . 80 36 111 32 67 12 4 54 21 20 97 . 14 6 . 7 Core Hits 401 | 2 29 39 4 28 21 . 40 21 58 14 25 4 1 42 11 3 52 . 4 1 . 2 Critical Kills 5 | . 2 . . 1 . . . . . . . . . 2 . . . . . . . . Critical Parts Destroyed 11 | . . 1 . . . . . . 1 . . . . 4 1 . 1 . 3 . . . Critical Strikes 35 | . 2 1 . 1 7 . 4 1 3 . 3 . . 6 1 . 1 . 3 1 . 1 Meltdown 1 | . . . . 1 . . . . . . . . . . . . . . . . . . Destroy 13 | . 2 1 . . . . . . 1 . . . . 6 1 . 1 . 1 . . . Corrupt 1 | . . . . . . . 1 . . . . . . . . . . . . . . . Smash 2 | . . . . . . . . . . . . . . . . . . . 2 . . . Sever 18 | . . . . . 7 . 3 1 2 . 3 . . . . . . . . 1 . 1 Melee Attacks 297 | . . . . . 61 2 64 9 12 28 27 2 2 4 . . 1 7 38 11 . 29 Impact 37 | . . . . . . . . . . . . . . . . . 1 7 29 . . . Slashing 258 | . . . . . 60 2 64 9 11 28 27 2 2 4 . . . . 9 11 . 29 Piercing 1 | . . . . . . . . . 1 . . . . . . . . . . . . . Sneak Attacks 33 | . . . . . 8 . 1 1 2 4 8 . 2 1 . . . . 4 2 . . Combat Hostiles 1 | . . . . . . . 1 . . . . . . . . . . . . . . . Follow-up Attacks 10 | . . . . . 3 . 7 . . . . . . . . . . . . . . . Damage Inflicted 27128 | 38 880 1576 155 1745 1639 . 3014 1207 3258 1734 1854 322 288 2661 1215 257 3394 . 1078 503 . 310 Guns 13417 | 38 880 962 155 508 . . 517 797 2729 580 901 186 56 1760 555 257 2518 . 18 . . . Cannons 1483 | . . 614 . 680 20 . . . . . . 136 . . 33 . . . . . . . Explosions 3648 | . . . . 557 113 . . 265 97 471 . . . 706 627 . 812 . . . . . Melee 8564 | . . . . . 1506 . 2497 145 432 683 937 . 232 195 . . 64 . 1060 503 . 310 Ramming 16 | . . . . . . . . . . . 16 . . . . . . . . . . . Kinetic 11378 | 38 880 962 155 508 . . 234 681 1931 541 901 186 . 1722 287 . 2334 . 18 . . . Thermal 2697 | . . 614 . 680 20 . . . 97 471 . . 56 38 464 257 . . . . . . Explosive 2178 | . . . . 557 113 . . 265 . . . . . . 431 . 812 . . . . . Electromagnetic 2295 | . . . . . . . 283 116 798 39 . 136 . 706 33 . 184 . . . . . Impact 911 | . . . . . . . . . . . . . . . . . 64 . 847 . . . Slashing 7653 | . . . . . 1506 . 2497 145 432 683 937 . 232 195 . . . . 213 503 . 310 Piercing . | . . . . . . . . . . . . . . . . . . . . . . . Highest Corruption 17 | . . . . 3 2 . . 3 5 2 2 11 11 17 7 7 7 . 2 . . 1 Average Corruption 4 | . . . . 2 2 . . 3 4 2 2 9 11 11 3 7 7 . 2 . . 1 Corruption Purged . | . . . . . . . . . . . . . . . . . . . . . . . Corruption Blocked . | . . . . . . . . . . . . . . . . . . . . . . . Effects 206 | . . . . 28 3 . . 22 40 5 12 12 8 25 3 25 23 . . . . . Message Errors 53 | . . . . 9 . . . 7 12 1 . 3 2 5 . 8 6 . . . . . Matter Fused 36 | . . . . 7 . . . 2 5 1 7 2 1 4 1 1 5 . . . . . Heat Flow Errors 26 | . . . . 3 1 . . 5 5 1 2 1 . 3 1 2 2 . . . . . Energy Discharges 30 | . . . . 1 . . . 5 7 1 2 3 . 1 1 6 3 . . . . . Parts Rejected 4 | . . . . 1 . . . . . . . . 1 1 . . 1 . . . . . Parts Fused 3 | . . . . . . . . . . . . 2 . . . 1 . . . . . . Data Loss (minor) 21 | . . . . 1 1 . . 1 3 . 1 . 3 2 . 6 3 . . . . . Data Loss (major) 9 | . . . . 1 1 . . 1 2 1 . . . 1 . 1 1 . . . . . Misfires 9 | . . . . 2 . . . . 3 . . . 1 3 . . . . . . . . Alerts 5 | . . . . 3 . . . . 1 . . . . 1 . . . . . . . . Misdirections 4 | . . . . . . . . . . . . 1 . 3 . . . . . . . . Weapon Failures 6 | . . . . . . . . 1 2 . . . . 1 . . 2 . . . . . Overload Shots 3 | . . . . . . . . . . . . 1 1 1 . . . . . . . . Overflow Damage 1365 | . . 2 . 2 55 . 115 42 . 263 110 . 127 5 114 . 11 . 519 . . . Projectiles 4 | . . 2 . 2 . . . . . . . . . . . . . . . . . . Explosions 238 | . . . . . . . . . . 110 . . . 3 114 . 11 . . . . . Melee 1123 | . . . . . 55 . 115 42 . 153 110 . 127 2 . . . . 519 . . . Knockbacks 1 | . . . . . . . . . . . . . . . . . . . 1 . . . Impact 1 | . . . . . . . . . . . . . . . . . . . 1 . . . Kinetic . | . . . . . . . . . . . . . . . . . . . . . . . Secondary . | . . . . . . . . . . . . . . . . . . . . . . . Self-Inflicted Damage 735 | . . . . 60 16 . . 148 49 . 8 . . 94 212 . 148 . . . . . Shots 14 | . . . . 3 1 . . 2 1 . . . . 1 3 . 3 . . . . . Rammed 1 | . . . . . . . . . . . 1 . . . . . . . . . . . Targets Rammed 1 | . . . . . . . . . . . 1 . . . . . . . . . . . Kicked . | . . . . . . . . . . . . . . . . . . . . . . . Crushed . | . . . . . . . . . . . . . . . . . . . . . . . Highest Temperature 473 | . 40 396 7 306 93 . 27 262 236 108 206 258 180 246 86 92 416 . 373 473 13 431 Average Temperature 131 | . 12 181 4 113 36 . 16 83 52 21 33 86 82 85 29 50 186 . 149 204 7 155 Received Heat Transfer 3548 | . 312 309 48 324 198 . 267 138 521 63 351 18 . 213 30 . 681 36 30 . 9 . Effects 40 | . . 5 . . . . . . . . . . . . . . 6 . 7 7 . 15 Shutdowns 8 | . . 1 . . . . . . . . . . . . . . . . 2 2 . 3 Energy Bleed 8 | . . . . . . . . . . . . . . . . . 1 . 2 . . 5 Interference 14 | . . 2 . . . . . . . . . . . . . . 2 . 1 3 . 6 Matter Decay 4 | . . 1 . . . . . . . . . . . . . . 1 . 2 . . . Short Circuit 4 | . . 1 . . . . . . . . . . . . . . 1 . . 2 . . Damage (minor) 2 | . . . . . . . . . . . . . . . . . 1 . . . . 1 Siege Activations 24 | . . . . . . . . 3 12 . . . . 2 1 . 6 . . . . . Total Turns 398 | . . . . . . . . 48 176 . . . . 37 21 . 116 . . . . . Longest Duration 36 | . . . . . . . . 20 36 . . . . 21 21 . 32 . . . . . Martial Activations . | . . . . . . . . . . . . . . . . . . . . . . . Shielding Activations . | . . . . . . . . . . . . . . . . . . . . . . . Robots Disrupted 1 | . . . . . . . . . . . . . . . . . 1 . . . . . Combat Hostiles 1 | . . . . . . . . . . . . . . . . . 1 . . . . . Robots Corrupted 5 | . . . . . . . 1 . 3 . . . . . . . . . 1 . . . Combat Hostiles 4 | . . . . . . . 1 . 3 . . . . . . . . . . . . . Parts Fried 16 | . . . . . . . 1 1 6 . . . . 3 . . . . 5 . . . Impact Corruptions 10 | . . . . . . . . . . . . . . . . . . . 10 . . . Robots Melted 1 | . . . . 1 . . . . . . . . . . . . . . . . . . Combat Hostiles 1 | . . . . 1 . . . . . . . . . . . . . . . . . . Parts Melted 4 | . . 1 . 1 . . . . . . . . 2 . . . . . . . . . Heat Transferred 3903 | . . 1110 . 1184 37 . . . 49 300 . . 50 37 396 740 . . . . . . Parts Sabotaged 3 | . . . . . . . . . . 3 . . . . . . . . . . . . Parts Stolen . | . . . . . . . . . . . . . . . . . . . . . . . Parts Stripped . | . . . . . . . . . . . . . . . . . . . . . . . Power Chain Reactions 1 | . . . . . . . . . 1 . . . . . . . . . . . . . Alert | -11 -10 -9 -9 -9 -8 -7 -7 -7 -7 -6 -6 -6 -6 -6 -5 -5 -5 -4 -3 -2 -2 -1 ------- Run | Yrd Mat Mat Sto Gar Mat Fac Gar Fac Gar Fac Ext Cet Arc Hub Fac Was Fac Fac Res Res DSF Acc Maximum Alert Level 5 | . . 1 . 3 1 . 3 2 5 4 3 2 1 2 1 . 3 2 1 . . . Low Security (%) 34 | 100 100 98 100 6 . 100 12 . . . . . 93 57 55 100 27 . 38 100 100 100 Level 1 19 | . . 1 . 28 100 . 21 . 3 . . 40 6 34 44 . 25 9 61 . . . Level 2 22 | . . . . 64 . . 39 100 8 . 43 59 . 8 . . 31 90 . . . . Level 3 14 | . . . . . . . 26 . 34 51 56 . . . . . 15 . . . . . Level 4 8 | . . . . . . . . . 43 48 . . . . . . . . . . . . Level 5 . | . . . . . . . . . 9 . . . . . . . . . . . . . High Security . | . . . . . . . . . . . . . . . . . . . . . . . Max Security . | . . . . . . . . . . . . . . . . . . . . . . . Peak Influence 1660 | 10 85 205 98 747 364 135 1041 631 1660 1344 806 463 209 536 303 99 863 464 297 105 77 126 Initial 871 | . . . 78 63 364 135 67 546 351 871 654 435 134 42 245 99 . 413 232 105 77 33 Average 438 | . 25 88 66 422 278 116 551 529 1074 987 714 405 162 185 175 13 392 427 219 87 67 70 Influence Increases 10797 | 10 392 575 60 774 457 2 1084 424 1449 982 788 141 119 890 392 . 1389 161 338 78 . 292 Destroy 0b10 Robot/C 4740 | . 280 380 40 420 240 . 420 140 860 200 480 80 40 320 60 . 680 . 60 . . 40 Destroy 0b10 Robot/NC 420 | 10 20 40 . . 30 . 35 45 5 40 35 5 10 65 15 . 30 . 30 5 . . Destroy Leader 764 | . 58 102 20 20 58 . 20 68 30 52 42 . . 94 20 . 152 . 16 2 . 10 Allied During Kill 496 | . . . . 1 . . 17 6 68 16 129 33 24 . . . 202 . . . . . Successful Hack 499 | . 11 6 . 12 62 . 23 33 21 28 7 . . 18 . . 14 78 98 8 . 80 Disable Machine 795 | . 15 . . 15 30 . 30 75 15 195 . 15 45 90 120 . 105 30 . . . 15 Anti-Garrison Action 1150 | . . . . 200 . . 450 . 350 150 . . . . . . . . . . . . Destroy Structure 958 | . 8 2 . 76 7 2 44 57 40 46 35 8 . 123 162 . 176 8 44 18 . 102 Partial Spotted 180 | . . . . . . . 30 . 15 . . . . . 15 . . 15 45 45 . 15 Lose Combat Pursuer 795 | . . 45 . 30 30 . 15 . 45 255 60 . . 180 . . 30 30 45 . . 30 Influence Decreases 10758 | 10 392 388 149 125 907 202 140 963 291 1305 1347 583 332 513 607 285 544 562 594 163 46 310 Entered New Map 4681 | . . . 109 35 383 162 30 495 151 789 683 343 202 81 255 186 . 432 212 83 26 24 Time Decay 4627 | 10 382 378 40 . 464 40 . 428 . 486 404 170 110 262 222 99 324 130 362 70 . 246 Lost Part 810 | . 10 10 . 90 30 . 90 . 80 . 40 30 . 90 130 . 120 . 20 10 20 40 Lost Ally 640 | . . . . . 30 . 20 40 60 30 220 40 20 80 . . 100 . . . . . Squads Dispatched 50 | . 2 1 2 . 1 . . 4 . 11 2 . . 6 2 . 9 1 4 1 . 4 Investigation 6 | . 2 . . . 1 . . . . 1 1 . . . . . 1 . . . . . Extermination 14 | . . . . . . . . 2 . 3 . . . 1 1 . 1 1 2 1 . 2 Reinforcement 14 | . . 1 1 . . . . 1 . 2 1 . . 2 1 . 1 . 2 . . 2 Assault 6 | . . . . . . . . 1 . 4 . . . . . . 1 . . . . . Garrison 10 | . . . 1 . . . . . . 1 . . . 3 . . 5 . . . . . Intercept . | . . . . . . . . . . . . . . . . . . . . . . . Searches Triggered . | . . . . . . . . . . . . . . . . . . . . . . . Construction Impeded 5 | . . . . . . . . . . 1 . . . 2 1 . 1 . . . . . Haulers Reinforced 2 | . . . . . . . . . . 1 . . . . . . . . 1 . . . Active Scanning Responses . | . . . . . . . . . . . . . . . . . . . . . . . Cargo Convoy Interrupts . | . . . . . . . . . . . . . . . . . . . . . . . Stealth | -11 -10 -9 -9 -9 -8 -7 -7 -7 -7 -6 -6 -6 -6 -6 -5 -5 -5 -4 -3 -2 -2 -1 --------- Run | Yrd Mat Mat Sto Gar Mat Fac Gar Fac Gar Fac Ext Cet Arc Hub Fac Was Fac Fac Res Res DSF Acc Distress Signals 12 | . . . . 1 2 . . . 2 . 2 1 . 2 1 . . . . . . 1 Communications Jammed 14 | . . . . . . . . . . . . . . . . . . . 14 . . . Distress Signals 14 | . . . . . . . . . . . . . . . . . . . 14 . . . Times Spotted 420 | . 22 30 3 30 30 . 33 12 49 33 36 6 2 33 20 . 36 2 16 8 2 17 Peak Tracking Total 13 | . 4 5 2 9 5 . 4 2 9 12 6 5 1 11 11 . 6 1 4 7 2 13 Tactical Retreats 34 | . . 1 . 1 2 . 1 . 3 6 5 . . 8 . . 1 2 2 . . 2 ECM-based Alert Blocks 9 | . . . . . . . . . . . 9 . . . . . . . . . . . Traps | -11 -10 -9 -9 -9 -8 -7 -7 -7 -7 -6 -6 -6 -6 -6 -5 -5 -5 -4 -3 -2 -2 -1 ------- Run | Yrd Mat Mat Sto Gar Mat Fac Gar Fac Gar Fac Ext Cet Arc Hub Fac Was Fac Fac Res Res DSF Acc Traps Triggered 19 | . 1 . . 5 2 . 3 . 3 . 1 . . 2 2 . . . . . . . Indirectly . | . . . . . . . . . . . . . . . . . . . . . . . Trap Hack Attempts . | . . . . . . . . . . . . . . . . . . . . . . . Triggered . | . . . . . . . . . . . . . . . . . . . . . . . Disarmed . | . . . . . . . . . . . . . . . . . . . . . . . Reprogrammed . | . . . . . . . . . . . . . . . . . . . . . . . Reused . | . . . . . . . . . . . . . . . . . . . . . . . Traps Extracted . | . . . . . . . . . . . . . . . . . . . . . . . Installed 2 | . . . . . . . 2 . . . . . . . . . . . . . . . Triggered . | . . . . . . . . . . . . . . . . . . . . . . . Machines | -11 -10 -9 -9 -9 -8 -7 -7 -7 -7 -6 -6 -6 -6 -6 -5 -5 -5 -4 -3 -2 -2 -1 ---------- Run | Yrd Mat Mat Sto Gar Mat Fac Gar Fac Gar Fac Ext Cet Arc Hub Fac Was Fac Fac Res Res DSF Acc Machines Disabled 68 | . 1 . . 4 2 . 9 5 5 14 . 1 3 6 8 . 7 2 . . . 1 Max in Single Turn 8 | . 1 . . 2 1 . 2 3 1 8 . 1 . 3 4 . 1 1 . . . 1 Garrison Access 5 | . . . . . . . . . . 1 . . . . . . 1 . 2 . . 1 Garrison Relay 10 | . . . . 1 . . 5 . 4 . . . . . . . . . . . . . Phase Generator 2 | . . . . 1 . . 1 . . . . . . . . . . . . . . . Network Hub 1 | . . . . . . . . . . . . . . 1 . . . . . . . . Machines Repaired . | . . . . . . . . . . . . . . . . . . . . . . . Machines Dismantled . | . . . . . . . . . . . . . . . . . . . . . . . Machines Sabotaged . | . . . . . . . . . . . . . . . . . . . . . . . Overloaded Fab Kills . | . . . . . . . . . . . . . . . . . . . . . . . Hacking | -11 -10 -9 -9 -9 -8 -7 -7 -7 -7 -6 -6 -6 -6 -6 -5 -5 -5 -4 -3 -2 -2 -1 --------- Run | Yrd Mat Mat Sto Gar Mat Fac Gar Fac Gar Fac Ext Cet Arc Hub Fac Was Fac Fac Res Res DSF Acc Machines Accessed 89 | . 8 4 2 3 10 1 3 6 4 7 5 2 1 4 2 . 2 6 10 2 . 7 Terminals 55 | . 7 2 . 3 5 . 3 2 4 2 5 2 . 4 . . . 5 6 1 . 4 Fabricators 5 | . . . . . . . . . . 4 . . . . . . 1 . . . . . Repair Stations 8 | . 1 1 1 . 2 . . . . . . . . . 1 . . 1 . 1 . . Recycling Units 4 | . . 1 . . 1 . . . . 1 . . . . . . . . 1 . . . Scanalyzers 9 | . . . . . 2 . . 3 . . . . . . 1 . . . 1 . . 2 Garrison Access 7 | . . . 1 . . 1 . 1 . . . . . . . . 1 . 2 . . 1 Total Hacks 309 | . 27 9 2 5 28 2 8 17 5 16 8 3 25 16 13 . 9 24 57 5 . 30 Successful 177 | . 13 5 2 3 15 2 2 11 3 5 2 1 25 5 6 . 7 9 35 3 . 23 Failed 131 | . 14 4 . 2 12 . 6 6 2 11 6 2 . 11 7 . 2 15 22 2 . 7 Catastrophic 23 | . 1 1 . . 1 . 1 . 2 4 1 1 . 3 3 . . 2 3 . . . Database Lockouts 1 | . . . . . 1 . . . . . . . . . . . . . . . . . Manual 81 | . 20 1 1 . 10 . . . . 6 . . . 10 . . 3 12 12 . . 6 Terminals 169 | . 22 6 . 5 14 . 8 3 5 7 8 3 . 16 . . . 20 33 1 . 18 Fabricators 11 | . . . . . . . . . . 7 . . . . . . 4 . . . . . Repair Stations 26 | . 5 2 1 . 4 . . . . . . . . . 6 . . 4 . 4 . . Recycling Units 5 | . . 1 . . 1 . . . . 2 . . . . . . . . 1 . . . Scanalyzers 55 | . . . . . 9 . . 12 . . . . . . 7 . . . 17 . . 10 Garrison Access 18 | . . . 1 . . 2 . 2 . . . . . . . . 5 . 6 . . 2 Terminal Hacks 76 | . 1 2 . 3 3 . 2 1 3 1 2 1 25 3 . . . 5 11 1 . 12 Record 28 | . . . . . . . . . . . . 1 25 1 . . . . . . . 1 Part Schematic 1 | . . . . . . . . . . . . . . . . . . 1 . . . . Robot Schematic 1 | . . 1 . . . . . . . . . . . . . . . . . . . . Robot Analysis 1 | . . . . . . . . . . . . . . . . . . . 1 . . . Prototype ID Bank 1 | . . . . . . . . . . . . . . . . . . . . . . 1 Open Door 4 | . . . . . . . 1 . 1 . 1 . . . . . . . . . . 1 Open DSF 2 | . . . . . . . . . . . . . . . . . . . 1 1 . . Level Access Points 1 | . . . . . . . . . . . . . . . . . . . . . . 1 Branch Access Points 4 | . 1 . . . . . . . . 1 . . . . . . . . 1 . . 1 Emergency Access Points 2 | . . . . 1 . . . . 1 . . . . . . . . . . . . . Terminal Index 5 | . . . . . 1 . . . . . . . . 1 . . . 1 1 . . 1 Fabricator Index 2 | . . . . . . . . . . . . . . . . . . 1 1 . . . Scanalyzer Index 1 | . . . . . . . . . . . . . . 1 . . . . . . . . Garrison Index 1 | . . . . . . . . . . . . . . . . . . . . . . 1 Locate Traps 2 | . . . . . . . . . . . . . . . . . . . 2 . . . Surveillance Status 2 | . . . . . . . . . . . . . . . . . . . 1 . . 1 Extermination Status 1 | . . . . . . . . . . . . . . . . . . . . . . 1 Recall Extermination 1 | . . . . . . . . . . . . . . . . . . . 1 . . . Recall Reinforcements 1 | . . . . . . . . . . . . . . . . . . . 1 . . . Recall Assault 1 | . . . . . 1 . . . . . . . . . . . . . . . . . Registered Components 5 | . . 1 . . 1 . . 1 . . . . . . . . . 1 . . . 1 Registered Prototypes 2 | . . . . . . . . . . . . . . . . . . . 1 . . 1 Zone Layout 3 | . . . . . . . . . . . 1 . . . . . . 1 . . . 1 Garrison Registry 1 | . . . . 1 . . . . . . . . . . . . . . . . . . Patrol Navigation 2 | . . . . 1 . . . . 1 . . . . . . . . . . . . . Security Stations 1 | . . . . . . . 1 . . . . . . . . . . . . . . . Fabricator Hacks 5 | . . . . . . . . . . 3 . . . . . . 2 . . . . . Load Schematic 3 | . . . . . . . . . . 2 . . . . . . 1 . . . . . Build 2 | . . . . . . . . . . 1 . . . . . . 1 . . . . . Repair Station Hacks 10 | . 4 2 . . 2 . . . . . . . . . . . . . . 2 . . Scan Component 5 | . 2 1 . . 1 . . . . . . . . . . . . . . 1 . . Repair 4 | . 2 1 . . . . . . . . . . . . . . . . . 1 . . Refit 1 | . . . . . 1 . . . . . . . . . . . . . . . . . Recycling Unit Hacks 3 | . . 1 . . 1 . . . . . . . . . . . . . 1 . . . Report Inventory 2 | . . 1 . . 1 . . . . . . . . . . . . . . . . . Retrieve Components 1 | . . . . . . . . . . . . . . . . . . . 1 . . . Scanalyzer 45 | . . . . . 5 . . 8 . . . . . . 6 . . . 17 . . 9 Insert Component 10 | . . . . . 1 . . 3 . . . . . . 1 . . . 4 . . 1 Analyze 13 | . . . . . 1 . . 3 . . . . . . 2 . . . 6 . . 1 Retrieve Study 22 | . . . . . 3 . . 2 . . . . . . 3 . . . 7 . . 7 Garrison Access Hacks 13 | . . . 1 . . 2 . 2 . . . . . . . . 2 . 4 . . 2 Unlock Access 3 | . . . 1 . . 1 . 1 . . . . . . . . . . . . . . Seal Access 4 | . . . . . . . . . . . . . . . . . 1 . 2 . . 1 Coupler Status 6 | . . . . . . 1 . 1 . . . . . . . . 1 . 2 . . 1 Unauthorized Hacks 25 | . 8 . 1 . 4 . . . . 1 . . . 2 . . 3 4 2 . . . Terminals 21 | . 8 . . . 4 . . . . 1 . . . 2 . . . 4 2 . . . Assimilate 2 | . . . . . . . . . . . . . . 1 . . . 1 . . . . Botnet 8 | . 2 . . . 3 . . . . . . . . 1 . . . 1 1 . . . Operators 6 | . 1 . . . 1 . . . . 1 . . . . . . . 2 1 . . . Skim 5 | . 5 . . . . . . . . . . . . . . . . . . . . . Fabricators . | . . . . . . . . . . . . . . . . . . . . . . . Repair Stations 1 | . . . 1 . . . . . . . . . . . . . . . . . . . Mechanics 1 | . . . 1 . . . . . . . . . . . . . . . . . . . Recycling Units . | . . . . . . . . . . . . . . . . . . . . . . . Scanalyzers . | . . . . . . . . . . . . . . . . . . . . . . . Garrison Access 3 | . . . . . . . . . . . . . . . . . 3 . . . . . Restock 1 | . . . . . . . . . . . . . . . . . 1 . . . . . Intercept 1 | . . . . . . . . . . . . . . . . . 1 . . . . . Watchers 1 | . . . . . . . . . . . . . . . . . 1 . . . . . Data Cores Recovered 1 | . . . . . . . . . . 1 . . . . . . . . . . . . Used 1 | . . . . . . . . . . 1 . . . . . . . . . . . . Hacking Detections 77 | . 7 3 1 3 9 . 3 6 3 7 4 2 . 4 2 . 2 6 8 . . 7 Full Trace Events 6 | . 1 . . . . . 1 . 1 1 1 . . . . . 1 . . . . . Feedback Events . | . . . . . . . . . . . . . . . . . . . . . . . Feedback Blocked . | . . . . . . . . . . . . . . . . . . . . . . . Robot Schematics Acquired 1 | . . 1 . . . . . . . . . . . . . . . . . . . . Robots Built . | . . . . . . . . . . . . . . . . . . . . . . . Authchips . | . . . . . . . . . . . . . . . . . . . . . . . Time . | . . . . . . . . . . . . . . . . . . . . . . . Total Robot Build Rating . | . . . . . . . . . . . . . . . . . . . . . . . Part Schematics Acquired 9 | . . . . . 1 . . 3 . . . . . . . . . 1 3 . . 1 Parts Built 4 | . . . . . . . . . . 2 . . . . . . 2 . . . . . Authchips . | . . . . . . . . . . . . . . . . . . . . . . . Time 116 | . . . . . . . . . . 58 . . . . . . 58 . . . . . Total Part Build Rating 28 | . . . . . . . . . . 14 . . . . . . 14 . . . . . Part Studies Acquired 22 | . . . . . 3 . . 2 . . . . . . 3 . . . 7 . . 7 Parts Repaired 3 | . 2 1 . . . . . . . . . . . . . . . . . . . . Time 131 | . 52 36 . . . . . . . . . . . . . . . . . 43 . . Parts Recycled . | . . . . . . . . . . . . . . . . . . . . . . . Recycled Matter . | . . . . . . . . . . . . . . . . . . . . . . . Retrieved Matter . | . . . . . . . . . . . . . . . . . . . . . . . Retrieved Components . | . . . . . . . . . . . . . . . . . . . . . . . Parts Scanalyzed 10 | . . . . . 1 . . 3 . . . . . . 1 . . . 4 . . 1 Part Schematics Acquired 8 | . . . . . 1 . . 3 . . . . . . . . . . 3 . . 1 Parts Damaged 2 | . . . . . . . . 1 . . . . . . 1 . . . . . . . Bothacking | -11 -10 -9 -9 -9 -8 -7 -7 -7 -7 -6 -6 -6 -6 -6 -5 -5 -5 -4 -3 -2 -2 -1 ------------ Run | Yrd Mat Mat Sto Gar Mat Fac Gar Fac Gar Fac Ext Cet Arc Hub Fac Was Fac Fac Res Res DSF Acc Used RIF Installer 4 | . . . . 2 . . 1 . 1 . . . . . . . . . . . . . Command Fork 1 | . . . . . . . . . 1 . . . . . . . . . . . . . Structural Interface 1 | . . . . 1 . . . . . . . . . . . . . . . . . . Autooverride 1 | . . . . . . . 1 . . . . . . . . . . . . . . . Robots Hacked 18 | . . . . 2 1 . 4 . 1 1 . 1 3 2 2 . . . . . . 1 Non-combat 7 | . . . . . 1 . . . . 1 . . . 2 2 . . . . . . 1 Combat 11 | . . . . 2 . . 4 . 1 . . 1 3 . . . . . . . . . Autooverrided 4 | . . . . . . . 1 . 1 . . . 2 . . . . . . . . . Robot Hacks Applied 17 | . . . . 3 1 . 3 . . 1 . 1 1 2 3 . . . . . . 2 parse_system 2 | . . . . . . . . . . . . 1 . . . . . . . . . 1 find_chute 3 | . . . . . . . . . . . . . . . 3 . . . . . . . block_reporting 2 | . . . . . . . . . . . . . . 1 . . . . . . . 1 map_route 1 | . . . . . . . . . . . . . . 1 . . . . . . . . overload_power 1 | . . . . . . . 1 . . . . . . . . . . . . . . . amplify_resonance 3 | . . . . 1 . . 2 . . . . . . . . . . . . . . . overwrite_iff 1 | . . . . 1 . . . . . . . . . . . . . . . . . . formatsys_low 2 | . . . . . 1 . . . . 1 . . . . . . . . . . . . formatsys_high 2 | . . . . 1 . . . . . . . . 1 . . . . . . . . . Relay Couplers Released 40 | . . . . 5 . . 19 . 14 2 . . . . . . . . . . . . Machine Destruction 40 | . . . . 5 . . 19 . 14 2 . . . . . . . . . . . . Attached 10 | . . . . 2 1 . 1 . 3 1 . 1 . . . . . . . . . 1 Fabnet Peak Effective % . | . . . . . . . . . . . . . . . . . . . . . . . Robots Rewired 20 | . . . . . . . 2 . . 1 17 . . . . . . . . . . . Allies Hacked 1 | . . . . . . . . . 1 . . . . . . . . . . . . . Hacks Repelled . | . . . . . . . . . . . . . . . . . . . . . . . Allies | -11 -10 -9 -9 -9 -8 -7 -7 -7 -7 -6 -6 -6 -6 -6 -5 -5 -5 -4 -3 -2 -2 -1 -------- Run | Yrd Mat Mat Sto Gar Mat Fac Gar Fac Gar Fac Ext Cet Arc Hub Fac Was Fac Fac Res Res DSF Acc Total Allies 53 | . . . . 1 1 . 3 . 5 2 18 . 3 . . 20 . . . . . . Largest Group 20 | . . . . 1 1 . 2 2 2 3 6 6 6 5 . 20 20 . . . . . Highest-Rated Group 746 | . . . . 15 23 . 62 59 160 85 172 172 218 166 . 746 745 . . . . . Highest-Rated Ally 80 | . . . . 15 23 . 31 31 80 39 39 39 49 49 . 50 50 . . . . . Total Orders 4 | . . . . . 3 . . . . 1 . . . . . . . . . . . . STAY 1 | . . . . . 1 . . . . . . . . . . . . . . . . . FOLLOW 1 | . . . . . 1 . . . . . . . . . . . . . . . . . AID 2 | . . . . . 1 . . . . 1 . . . . . . . . . . . . Ally Attacks 352 | . . . . 3 2 . 14 9 47 19 109 45 9 37 . . 58 . . . . . Total Damage 10403 | . . . . 73 28 . 265 104 1647 630 1827 822 249 996 . . 3762 . . . . . Kills 77 | . . . . 1 . . 2 1 12 5 18 4 1 8 . . 25 . . . . . Allies Corrupted 1 | . . . . . . . . . 1 . . . . . . . . . . . . . Allies Melted . | . . . . . . . . . . . . . . . . . . . . . . . Intel | -11 -10 -9 -9 -9 -8 -7 -7 -7 -7 -6 -6 -6 -6 -6 -5 -5 -5 -4 -3 -2 -2 -1 ------- Run | Yrd Mat Mat Sto Gar Mat Fac Gar Fac Gar Fac Ext Cet Arc Hub Fac Was Fac Fac Res Res DSF Acc Active Infowar (turns) 10149 | . 1228 933 . . . 92 360 639 . 1026 960 354 226 572 468 801 775 180 836 154 16 529 Optics 8381 | . 757 933 . . . . . . . 928 960 354 226 572 468 801 775 72 836 154 16 529 Sensors 4453 | . . . . . . 92 360 639 . 715 731 24 . 177 . . . 180 836 154 16 529 Seismic 471 | . 471 . . . . . . . . . . . . . . . . . . . . . Machine Analysis 290 | . . . . . . . . . . . . . . . 290 . . . . . . . Jamming 1551 | . . . . . . . . . . . . . . . . . . 168 718 154 16 495 ECM 133 | . . . . . . . . . . . 121 . . . . . . . . 12 . . Robot Analysis Total 1 | . . . . . . . . . . . . . . . . . . . 1 . . . Derelict Logs Recovered . | . . . . . . . . . . . . . . . . . . . . . . . Drone Launches . | . . . . . . . . . . . . . . . . . . . . . . . Drone Recoveries . | . . . . . . . . . . . . . . . . . . . . . . . Exploration | -11 -10 -9 -9 -9 -8 -7 -7 -7 -7 -6 -6 -6 -6 -6 -5 -5 -5 -4 -3 -2 -2 -1 ------------- Run | Yrd Mat Mat Sto Gar Mat Fac Gar Fac Gar Fac Ext Cet Arc Hub Fac Was Fac Fac Res Res DSF Acc Turns Passed 16518 | 128 1260 981 90 1208 1160 92 1572 1048 1747 1263 960 354 226 572 468 801 788 265 836 154 16 529 Spaces Moved 12129 | 68 608 397 42 457 673 63 863 522 796 1567 1165 437 315 509 437 405 284 506 874 316 73 752 Core 87 | 6 . . . 1 1 . . . . . . . . . 29 12 28 10 . . . . Treads 3505 | 62 608 397 42 209 . . 262 522 767 . . . . 42 . 338 256 . . . . . Legs 1233 | . . . . 247 322 63 601 . . . . . . . . . . . . . . . Wheels 349 | . . . . . 349 . . . . . . . . . . . . . . . . . Hover 4621 | . . . . . 1 . . . 29 1567 1165 437 315 467 408 55 . 66 111 . . . Flight 2334 | . . . . . . . . . . . . . . . . . . 430 763 316 73 752 Fastest Speed 14 | 50 160 160 160 160 90 108 108 160 160 30 30 61 61 53 50 50 50 40 16 14 15 17 Average Speed 92 | 160 160 160 160 215 130 108 140 160 161 53 48 61 61 70 57 161 151 42 26 14 16 17 Slowest Speed 700 | 250 160 160 160 600 700 108 330 160 230 211 114 61 62 160 108 340 700 60 215 17 19 89 Overloaded Moves 574 | . . . . . . . . . . 399 111 . . 51 13 . . . . . . . Propulsion Burnouts . | . . . . . . . . . . . . . . . . . . . . . . . Robots Hopped 14 | . . . . . . . . . . . . . . . . . . . 4 4 . 6 Potential Cave-ins 11 | . . . . . . . . . . . 8 . . . . . . . . . . 3 Cave-ins Triggered . | . . . . . . . . . . . . . . . . . . . . . . . Exploration Rate (%) 48 | 4 94 40 11 67 61 2 99 18 97 47 83 94 99 47 12 96 9 12 29 12 67 24 Regions Visited 22 Branch Regions 5 Pre-discovered Areas 1 | . 1 . . . . . . . . . . . . . . . . . . . . . Known Exits Taken 14 | . 1 1 1 . . 1 . 1 . 1 1 1 1 1 . . 1 1 1 1 . . Unknown Exits Taken 2 | 1 . . . . 1 . . . . . . . . . . . . . . . . . Scrap Searched . | . . . . . . . . . . . . . . . . . . . . . . . Spaces Dug 145 | . 7 . . . 4 2 . 14 . 13 22 2 . 2 4 . . 5 23 6 . 41 Terrain Destroyed 756 | . 7 . . 105 7 2 73 63 6 31 31 3 . 175 84 . 92 5 23 6 . 43 Melee 90 | . . . . . 4 2 . 6 . 13 7 2 . 1 . . . 5 21 5 . 24 Projectile 152 | . 7 . . . . . . 19 2 10 24 1 . 14 6 . 47 . 2 1 . 19 AOE 514 | . . . . 105 3 . 73 38 4 8 . . . 160 78 . 45 . . . . . Terrain Rammed . | . . . . . . . . . . . . . . . . . . . . . . . Walls Destroyed . | . . . . . . . . . . . . . . . . . . . . . . . Machines Disabled . | . . . . . . . . . . . . . . . . . . . . . . . Actions | -11 -10 -9 -9 -9 -8 -7 -7 -7 -7 -6 -6 -6 -6 -6 -5 -5 -5 -4 -3 -2 -2 -1 --------- Run | Yrd Mat Mat Sto Gar Mat Fac Gar Fac Gar Fac Ext Cet Arc Hub Fac Was Fac Fac Res Res DSF Acc Total 15888 | 80 774 595 50 581 869 84 1112 668 1106 1880 1438 506 339 642 625 533 528 536 1397 400 75 1070 Wait 2133 | . 76 82 . 1 66 7 99 65 196 181 118 38 19 52 145 80 160 9 416 67 . 256 Move 12088 | 67 607 396 42 456 672 63 862 522 795 1566 1164 436 314 508 437 404 283 505 865 310 72 742 Hop 8 | . . . . . . . . . . . . . . . . . . . 4 1 . 3 Pick Up 133 | 5 14 13 1 12 11 4 4 7 6 13 6 4 . 4 5 4 10 1 4 2 1 2 Fast Attach 150 | 6 1 4 . 4 22 2 10 8 6 17 . 1 1 5 3 8 2 10 33 2 2 3 Attach 60 | . 4 2 . 4 . 2 3 . 4 1 3 4 . 9 7 5 6 2 . 2 . 2 Detach 12 | . . . . . . . 1 . . 1 . 1 . 3 1 3 . 1 . . . 1 Swap 147 | . 8 11 . 13 14 . 11 9 7 25 18 4 1 5 . 4 7 . 6 1 . 3 Drop 160 | . 8 10 . 7 28 4 9 17 3 20 2 2 . 8 . 8 2 . 27 3 . 2 Fire 599 | 2 56 77 7 64 2 . 27 31 77 25 47 14 2 41 27 10 57 1 4 1 . 27 Melee 280 | . . . . . 54 2 54 9 12 28 27 2 2 4 . . 1 7 38 11 . 29 Ram 2 | . . . . . . . . . . . 1 . . 1 . . . . . . . . Kick . | . . . . . . . . . . . . . . . . . . . . . . . Crush . | . . . . . . . . . . . . . . . . . . . . . . . Escape Stasis 32 | . . . . 20 . . 10 . . . . . . 2 . . . . . . . . Rewire 82 | . . . . . . . 20 . . 3 52 . . . . 7 . . . . . . Trap 2 | . . . . . . . 2 . . . . . . . . . . . . . . . Miscellaneous . | . . . . . . . . . . . . . . . . . . . . . . . Route ------- -11/Scrapyard -10/Materials (discovered 5 exits: *Mat x3 / *Min / [*Sub]) -9/Materials (discovered 3 exits: *Mat / *Min / *Sto) -9/Storage (discovered 2 exits: Mat / Gar) -9/Garrison (discovered 3 exits: *Mat x3) -8/Materials -7/Factory -7/Garrison (discovered 3 exits: *Fac x3) -7/Factory -7/Garrison (discovered 3 exits: *Fac x3) -6/Factory (discovered 4 exits: Low x2 / *Ext x2) -6/Extension (discovered 2 exits: *Fac / *Cet) -6/Cetus (discovered 2 exits: *Fac / *Arc) -6/Archives (discovered 3 exits: *Fac / *Hub x2) -6/Hub_04(d) -5/Factory -5/Waste -5/Factory (discovered 2 exits: *Fac x2) -4/Factory -3/Research (discovered 3 exits: *Res / Qua x2) -2/Research -2/DSF -1/Access (discovered 2 exits: *Sur / Com) To Epsilon Eridani History --------- Turn | Location | Event 11 | -11/Scrapyard | Discovered new exit (range 16) 129 | -11/Scrapyard | Entered Materials 137 | -10/Materials | Identified exit to Mines 302 | -10/Materials | Build established: Mutant 428 | -10/Materials | Discovered new exit (range 8) 878 | -10/Materials | Discovered new exit (range 13) 972 | -10/Materials | Repaired Lgt. Treads 999 | -10/Materials | Repaired Ion Engine 1058 | -10/Materials | Discovered new exit (range 10) 1080 | -10/Materials | Learned location of 2 exits from Subcaves 1112 | -10/Materials | Learned location of Recycling (-9) 1134 | -10/Materials | Learned location of 1 exit from Storage 1148 | -10/Materials | Learned Storage trap positions 1154 | -10/Materials | Learned 4 Recycling zone layouts 1155 | -10/Materials | Identified exit to Materials 1156 | -10/Materials | Loaded intel: 10 interactive machine locations 1179 | -10/Materials | Loaded intel: 11 trap records 1389 | -10/Materials | Entered another Materials area 1389 | -9/Materials | Evolved 2 slots: Propulsion x1, Utility x1 1782 | -9/Materials | Discovered new exit (range 14) 1864 | -9/Materials | Repaired Broken Lgt. Treads 2010 | -9/Materials | Identified exit to Materials 2138 | -9/Materials | Discovered new exit (range 13) 2159 | -9/Materials | Identified exit to Mines 2180 | -9/Materials | Discovered new exit (range 11) 2249 | -9/Materials | Identified exit to Storage 2370 | -9/Materials | Entered Storage 2372 | -9/Storage | Loaded intel: 24 trap records 2460 | -9/Storage | Identified exit to Garrison 2460 | -9/Storage | Entered Garrison 2494 | -9/Garrison | Phase Generator disabled 2724 | -9/Garrison | Triggered checkpoint 2742 | -9/Garrison | Installed Relay Interface Framework 2851 | -9/Garrison | Core integrity fell below 50% 2910 | -9/Garrison | Destroyed 10 combat bots 2994 | -9/Garrison | Lost 3 parts (3n) 3096 | -9/Garrison | Triggered checkpoint 3113 | -9/Garrison | Garrison Relay disabled 3221 | -9/Garrison | Discovered exit to Materials (range 40) 3221 | -9/Garrison | Discovered exit to Materials (range 85) 3221 | -9/Garrison | Discovered exit to Materials (range 12) 3263 | -9/Garrison | Build established: Bothacker-Mutant 3336 | -9/Garrison | Triggered checkpoint 3366 | -9/Garrison | Triggered checkpoint 3517 | -9/Garrison | Core integrity fell below 20% 3546 | -9/Garrison | Expanded RIF knowledge: Structural Interface 3668 | -9/Garrison | Entered Materials 3668 | -8/Materials | Accompanied by 1 ally 3668 | -8/Materials | Evolved 2 slots: Propulsion x1, Utility x1 3896 | -8/Materials | Lost 3 parts (2n1u) 4763 | -8/Materials | Central database locked down 4826 | -8/Materials | Discovered new exit (range 3) 4828 | -8/Materials | Entered Factory 4828 | -7/Factory | Evolved 2 slots: Utility x2 4920 | -7/Factory | Identified exit to Garrison 4920 | -7/Factory | Entered Garrison 4934 | -7/Garrison | Build established: Gladiator 4970 | -7/Garrison | Expanded RIF knowledge: Autooverride 5024 | -7/Garrison | Triggered checkpoint 5058 | -7/Garrison | Garrison Relay disabled 5232 | -7/Garrison | Triggered checkpoint 5367 | -7/Garrison | Discovered new exit (range 14) 5389 | -7/Garrison | Garrison Relay disabled 5414 | -7/Garrison | Triggered checkpoint 5486 | -7/Garrison | Garrison Relay disabled 5546 | -7/Garrison | Triggered checkpoint 5588 | -7/Garrison | Lost 3 parts (1p1n1w) 5625 | -7/Garrison | Garrison Relay disabled 5694 | -7/Garrison | Discovered new exit (range 11) 5710 | -7/Garrison | Identified exit to Factory 5810 | -7/Garrison | Triggered checkpoint 5946 | -7/Garrison | Triggered checkpoint 6143 | -7/Garrison | Phase Generator disabled 6159 | -7/Garrison | Discovered exit to Factory (range 9) 6290 | -7/Garrison | Triggered checkpoint 6326 | -7/Garrison | Garrison Relay disabled 6388 | -7/Garrison | Learned Factory security intel 6412 | -7/Garrison | Triggered checkpoint 6492 | -7/Garrison | Entered Factory 6492 | -7/Factory | Accompanied by 2 allies 6652 | -7/Factory | Build established: Scavenger-Mutant 6892 | -7/Factory | First assault squad dispatched 7095 | -7/Factory | Build established: Mutant 7540 | -7/Factory | Identified exit to Garrison 7540 | -7/Factory | Entered Garrison 7541 | -7/Garrison | Found embedded Infiltrators 7600 | -7/Garrison | Core integrity fell below 50% 7664 | -7/Garrison | Triggered checkpoint 7712 | -7/Garrison | Garrison Relay disabled 8080 | -7/Garrison | Triggered checkpoint 8085 | -7/Garrison | Triggered checkpoint 8088 | -7/Garrison | Triggered checkpoint 8097 | -7/Garrison | Build established: Bothacker-Mutant 8144 | -7/Garrison | Destroyed 10 combat bots 8212 | -7/Garrison | Triggered checkpoint 8281 | -7/Garrison | Garrison Relay disabled 8375 | -7/Garrison | Discovered new exit (range 15) 8475 | -7/Garrison | Expanded RIF knowledge: Command Fork 8669 | -7/Garrison | Build established: Mutant 8788 | -7/Garrison | Discovered new exit (range 10) 8878 | -7/Garrison | Triggered checkpoint 8901 | -7/Garrison | Garrison Relay disabled 8973 | -7/Garrison | Core integrity fell below 20% 9051 | -7/Garrison | Garrison Relay disabled 9105 | -7/Garrison | Discovered new exit (range 13) 9118 | -7/Garrison | Rescued a captive Derelict 9122 | -7/Garrison | Rescued a captive Derelict 9145 | -7/Garrison | Identified exit to Factory 9172 | -7/Garrison | Triggered checkpoint 9287 | -7/Garrison | Entered Factory 9287 | -6/Factory | Accompanied by 1 ally 9287 | -6/Factory | Evolved 2 slots: Propulsion x1, Weapon x1 9358 | -6/Factory | Build established: Bothacker-Mutant 9781 | -6/Factory | Fabricated Railgun (x2) 9915 | -6/Factory | Found Prototype Processor 9927 | -6/Factory | Garrison activated, responded to threat 10001 | -6/Factory | Identified Exp. Targeting Computer 10226 | -6/Factory | Identified exit to Lower Caves 10226 | -6/Factory | Identified exit to Extension 10337 | -6/Factory | First assault squad dispatched 10550 | -6/Factory | Entered Extension 10647 | -6/Extension | Spotted B-75 Beast 10693 | -6/Extension | Build established: Scout 10863 | -6/Extension | Lost 3 allies 11335 | -6/Extension | Rescued a captive Derelict 11464 | -6/Extension | Discovered new exit (range 10) 11464 | -6/Extension | Discovered new exit (range 6) 11468 | -6/Extension | Identified exit to Cetus 11480 | -6/Extension | Identified exit to Factory 11510 | -6/Extension | Entered Cetus 11510 | -6/Cetus | Accompanied by 6 allies 11526 | -6/Cetus | Spotted Cetus Guard 11528 | -6/Cetus | Spotted Cetus Guard 11529 | -6/Cetus | Spotted Cetus Guard 11529 | -6/Cetus | Spotted Cetus Guard 11553 | -6/Cetus | Allies destroyed Cetus Guard 11553 | -6/Cetus | Allies destroyed Cetus Guard 11562 | -6/Cetus | Allies destroyed Cetus Guard 11567 | -6/Cetus | Destroyed Cetus Guard 11585 | -6/Cetus | Lost 3 parts (1u2w) 11588 | -6/Cetus | System corruption reached 10% 11697 | -6/Cetus | Discovered new exit (range 21) 11752 | -6/Cetus | Discovered exit to Factory (range 22) 11810 | -6/Cetus | Spotted Cetus Guard 11810 | -6/Cetus | Spotted Cetus Guard 11810 | -6/Cetus | Spotted Cetus Guard 11810 | -6/Cetus | Spotted Cetus Guard 11815 | -6/Cetus | Build established: Commander-Mutant 11824 | -6/Cetus | Identified exit to Archives 11864 | -6/Cetus | Entered Archives 11864 | -6/Archives | Accompanied by 4 allies 11878 | -6/Archives | Discovered new exit (range 21) 11881 | -6/Archives | Discovered new exit (range 20) 11897 | -6/Archives | Unable to access archive contents 11903 | -6/Archives | Unable to access archive contents 11903 | -6/Archives | Unable to access archive contents 11907 | -6/Archives | Discovered exit to Factory (range 22) 11910 | -6/Archives | Unable to access archive contents 11916 | -6/Archives | Unable to access archive contents 12001 | -6/Archives | Identified exit to Hub_04(d) 12090 | -6/Archives | Entered Hub_04(d) 12090 | -6/Hub_04(d) | Accompanied by 5 allies 12121 | -6/Hub_04(d) | Discovered exit to Factory (range 13) 12167 | -6/Hub_04(d) | Garrison activated, responded to threat 12615 | -6/Hub_04(d) | Network Hub disabled 12616 | -6/Hub_04(d) | Core integrity fell below 50% 12624 | -6/Hub_04(d) | Spotted Lightning 12627 | -6/Hub_04(d) | Spotted Lightning 12628 | -6/Hub_04(d) | Spotted Lightning 12641 | -6/Hub_04(d) | Spotted Lightning 12642 | -6/Hub_04(d) | Spotted Lightning 12653 | -6/Hub_04(d) | Spotted Lightning 12662 | -6/Hub_04(d) | Entered Factory 12662 | -5/Factory | Evolved 2 slots: Utility x2 12692 | -5/Factory | Lost 5 parts (1p1n3w) 12795 | -5/Factory | Discovered new exit (range 11) 12797 | -5/Factory | Build established: Mutant 12800 | -5/Factory | Identified exit to Factory 13130 | -5/Factory | Sucked down chute 13130 | -5/Factory | Entered Waste 13131 | -5/Waste | Joined by Warlord forces that had cleared the area 13148 | -5/Waste | Lost 13 parts (1p6n2u4w) 13443 | -5/Waste | Discovered new exit (range 22) 13464 | -5/Waste | Found Damper Plating 13540 | -5/Waste | Found Damper Plating 13916 | -5/Waste | Identified exit to Factory 13931 | -5/Waste | Entered Factory 13931 | -5/Factory | Accompanied by 20 allies 14038 | -5/Factory | Fabricated Railgun (x2) 14071 | -5/Factory | Lost 13 allies 14228 | -5/Factory | Discovered exit to Factory (range 12) 14266 | -5/Factory | Core integrity fell below 50% 14275 | -5/Factory | Garrison activated, responded to threat 14357 | -5/Factory | Garrison activated, responded to threat 14417 | -5/Factory | Build established: Tank 14428 | -5/Factory | Lost 5 allies 14531 | -5/Factory | First assault squad dispatched 14553 | -5/Factory | Lost 3 parts (1n1u1w) 14573 | -5/Factory | Discovered exit to Factory (range 21) 14636 | -5/Factory | Lost 5 parts (1p2n2w) 14641 | -5/Factory | Destroyed 9 combat bots 14671 | -5/Factory | Garrison activated, responded to threat 14703 | -5/Factory | Core integrity fell below 20% 14706 | -5/Factory | Released all parts (6) 14719 | -5/Factory | Entered another Factory area 14719 | -4/Factory | Evolved 2 slots: Power x1, Propulsion x1 14733 | -4/Factory | Lost 4 parts (1n3w) 14790 | -4/Factory | Build established: Mutant 14930 | -4/Factory | Watched by a mysterious "MATRIX" hacker. 14953 | -4/Factory | Discovered new exit (range 11) 14957 | -4/Factory | Identified exit to Research 14984 | -4/Factory | Entered Research 14984 | -3/Research | Evolved 2 slots: Utility x2 15224 | -3/Research | Spotted B-86 Titan 15315 | -3/Research | Identified exit to Quarantine 15388 | -3/Research | Build established: Hacker-Ninja 15594 | -3/Research | Discovered new exit (range 8) 15820 | -3/Research | Identified exit to Research 15820 | -3/Research | Entered another Research area 15820 | -2/Research | Evolved 2 slots: Propulsion x1, Utility x1 15974 | -2/Research | Identified exit to DSF 15974 | -2/Research | Entered DSF 15981 | -2/DSF | Discovered new exit (range 22) 15985 | -2/DSF | Found Prototype Hackware 15985 | -2/DSF | Identified Exp. Hacking Suite 15987 | -2/DSF | Found Exp. Hacking Suite 15990 | -2/DSF | Identified exit to Access 15990 | -2/DSF | Entered Access 15990 | -1/Access | Evolved 2 slots: Propulsion x1, Utility x1 15996 | -1/Access | Identified exit to Surface 16013 | -1/Access | Lost 3 parts (1n2u) 16162 | -1/Access | Identified exit to Command 16233 | -1/Access | Build established: Wizard-Ninja 16519 | *** | Escaped! Last Messages --------------- 16514_ ALERT: Potential suspicious activity detected, Programmers report to Access Zone 8R. 16514_ Slug penetrates Wall. 16514_ Adv. Remote Datajack+ destroyed. 16515_ W-44 Eye sends out distress signal. 16516_ Slug penetrates Wall. 16516_ Slug penetrates Sealed Barrier. 16516_ Penetrated by Slug. 16516_ Detecting nearby Garrison Access. 16517_ Connecting with Terminal... >>Open(Door) Sealed Barrier opened. 16517_ The Access Shell folds into the floor. 16518_ Knocked back. 16518_ Lgt. Particle Reactor+ destroyed. 16518_ Knocked back. 16519_ Diametric Drive destroyed. 16519_ Knocked back. 16519_ Slug penetrates Reinforced Barrier. Map ----- +----------------------------------------------------+ | ?????????????????????????????????????????????????? | | ?????????????????????????????????????????????????? | | ?????????????????????????????????????????????????? | | ?????????????????????????????????????????????????? | | ?????????????????????????????????????????????????? | | ?????????????????????????????????????????????????? | | ?????????????????????????????????????????????????? | | ?????????????????????????????????????????????????? | | ?????????????????????????????????????????????????? | | ?????????????????????????????????????????????????? | | ??????????###????????????????????????????????????? | | ?????????? ????????????????????????????????????? | | ?????????? ????????????????????????????????????? | | ??????????# ????????????????????????????????????? | | ??????????# ????????????????????????????????????? | | ??????????# ????w???????????????????????????????? | | ??????????# ????????????????????????????????????? | | ??????????# ??????##????????????????????????????? | | ??????????# ???#### #???????????????????????????? | | ??????????# #### ##########????????????????*?? | | ??????????# """T""" "??????????????????? | | ??????????# """ """ "??????????????????? | | ??????????# h "??????????????????? | | ??????????# "??????????????????? | | ??????????# "" "??????????????????? | | ??????????# h @" "??????????????????? | | ??????????# "??????????????????? | | ??????????# k c "??????????????????? | | ??????????# h "??????????????????? | | ??????????# c c "??????????????????? | | ??????????# h####### ##########?##???????????????? | | ??????????# #?????###??# #????# #???????????????? | | ??????????# #?##????############????????????????? | | ??????????# #?# #???# ##????????????????? | | ??????????# !##?# #??# * ##????????????????? | | ??????????# %*!??# #?# #?????????????????? | | ??????????# =#%####### [= ##?????????## ## | | ??????????# ## ##/############# | | ??????????# H## + % | | ?????????? # # | | ?????????? [ # # #####+####### | | ????????? # *# ## #??????######+#### | | ?????????# # # ## #????????????????? | | ?????????###### + ## #????????????????? | | ??????????????# # + #????????????????? | | ??????????????# ! # ## #????????????????? | | ??????????????# # ## #????????????????? | | ??????????????# # ## #????????????????? | | ??????????????# # ## #????????????????? | | ??????????????# # ## #????????????????? | +----------------------------------------------------+ Best States ------------- Heat Dissipation 52 Coolant Potential 200 Energy Generation 45 Energy Capacity 700 Matter Stores 300 Matter Capacity 300 Sight Range 22 Robot Scan Range 16 Terrain Scan Density 10 ECM Strength 2 Jamming Range 16 Additional Mass Support 9 Armor Coverage 3200 Resistance: KI 20 Resistance: EM 90 Propulsion Shielding 90 Weapon Shielding 33 Melee Speed Boost 20 Evasion (%) 76 Targeting Accuracy 20 Melee Accuracy 6 Core Analysis 6 Armor Integrity Analysis 40 Recoil Reduction 5 Kinecelleration 40 Offensive Hacking 54 Defensive Hacking 10 Relay Coupler Types 3 Relay Coupler Value 77 Item Schematics ----------------- Gravmag System | -8/Materials | Scanalyzed Imp. Heavy Treads | -7/Factory | Scanalyzed Railgun | -7/Factory | Scanalyzed Microactuators | -7/Factory | Scanalyzed Hyp. Railgun | -4/Factory | Hacked Lrn. Proton Cannon | -3/Research | Scanalyzed Disruptor Cannon | -3/Research | Scanalyzed Energy Well | -3/Research | Scanalyzed Mni. Drone Bay | -1/Access | Scanalyzed Robot Schematics ------------------ M-13 Machinist | -9/Materials | Hacked Fabricated ------------ Railgun | x2 | -6/Factory Railgun | x2 | -5/Factory Repaired ---------- Lgt. Treads | 1% | -10/Materials Ion Engine | 10% | -10/Materials Lgt. Treads | 92% | -9/Materials | Broken Studied --------- Katana | -8/Materials | Hacked Carbon-fiber Leg | -8/Materials | Hacked Datajack | -8/Materials | Hacked Remote Datajack | -7/Factory | Hacked Lgt. Nuclear Core | -7/Factory | Hacked Cmb. Airjet | -5/Factory | Hacked Proton Cannon | -5/Factory | Hacked Imp. Medium Treads | -5/Factory | Hacked Antigrav Array | -3/Research | Hacked Lgt. Angular Momentum Engine | -3/Research | Hacked Disruptor Cannon | -3/Research | Hacked Lrn. Proton Cannon | -3/Research | Hacked Hvy. Phase Cannon | -3/Research | Hacked Hardcell Cannon | -3/Research | Hacked Adv. Datajack | -3/Research | Hacked Impulse Thruster | -1/Access | Hacked Impulse Thruster Array | -1/Access | Hacked Lgt. Quantum Reactor | -1/Access | Hacked Adv. Remote Datajack | -1/Access | Hacked Lance | -1/Access | Hacked Lgt. Particle Reactor | -1/Access | Hacked Hyp. Railgun | -1/Access | Hacked Alien Tech Used ----------------- None Achievements -------------- May I Have Another? No Room For Error Streaker Challenges ------------ None Game ------ Seed ProtonAerolevSabre Manual? 0 Play Time 04:21:06 Cumulative 90.5 hours Start 2026.04.26 @ 17:30:17 End 2026.04.27 @ 16:23:15 Sessions 7 Manual Loads 0 Difficulty Rogue Special Mode None Game No. 52 Rogue 52 Adventurer 0 Explorer 0 Win Type 0 Total 2 Types 2/0/0/0/0/0/0/0/0/0 Lore% 33 Gallery% 47 Achievement% 43 Wizard Run 0 Options --------- Layout 1 ASCII 0 Keyboard 0 Movement Mouse Keybinds 0 Fullscreen 1 Font 24/Smallcaps Map View 50x35 Zoom Use 0% Tactical HUD 1 Map Filters NONE Filters NONE Steam 1 RUN: 488bee1e-d758-4830-8ba7-c4a9081332e1